fUSD/lending_fUSD_20241222
["ID","MTS","AMOUNT","RATE_DAILY","PERIOD"]
[346291476,1734875439267,-500.0,0.00019178,2]
[346291477,1734875439277,-956.03,0.00019178,2]
[346291478,1734875439287,-500.0,0.00019178,2]
[346291479,1734875439297,-500.0,0.00019178,2]
[346291480,1734875439306,-150.22205419,0.00019178,2]
[346291481,1734875439316,-500.0,0.00019178,2]
[346291482,1734875439325,-500.0,0.00019178,2]
[346291483,1734875439335,-25.37824832,0.00019178,2]
[346291489,1734875440189,-640.34136877,0.00015728,2]
[346291490,1734875440199,-474.62175168,0.00019178,2]
[346291491,1734875440208,-254.59687955,0.00019178,2]
[346291492,1734875440486,-3545.83312045,0.00019178,2]
[346291493,1734875440664,-232.64889471,0.00019178,2]
[346291494,1734875440675,-800.05110529,0.00019178,2]
[346291495,1734875440684,-830.58,0.00019178,2]
[346291496,1734875440693,-500.0,0.00019178,2]
[346291497,1734875440702,-1802.73353415,0.00019178,2]
[346291498,1734875440717,-2288.91045091,0.00019178,2]
[346291499,1734875440728,-438.37999999,0.00019178,2]
[346291500,1734875440739,-563.992002,0.00019178,2]
[346291501,1734875440751,-346.08150003,0.00019178,2]
[346291502,1734875440762,-294.766356,0.00019178,2]
[346291503,1734875440784,-2921.49615692,0.00019178,2]
[346291504,1734875440794,-500.0,0.00019178,2]
[346291505,1734875440804,-500.0,0.00019178,2]
[346291506,1734875440814,-3587.43,0.00019178,2]
[346291507,1734875440823,-4816.36,0.00019178,2]
[346291508,1734875440833,-500.0,0.00019178,2]
[346291509,1734875440842,-500.0,0.00019178,2]
[346291510,1734875440851,-732.24,0.00019178,2]
[346291511,1734875440860,-500.0,0.00019178,2]
[346291512,1734875440869,-887.72422912,0.00019178,2]
[346291513,1734875440951,-974.29577088,0.00019178,2]
[346291514,1734875440961,-500.0,0.00019178,2]
[346291515,1734875440971,-3883.79,0.00019178,2]
[346291516,1734875440981,-500.0,0.00019178,2]
[346291517,1734875440990,-1775.92,0.00019178,2]
[346291518,1734875441000,-500.0,0.00019178,2]
[346291519,1734875441009,-500.0,0.00019178,2]
[346291520,1734875441019,-500.0,0.00019178,2]
[346291521,1734875441028,-1155.35,0.00019178,2]
[346291522,1734875441038,-2408.86,0.00019178,2]
[346291523,1734875441047,-500.0,0.00019178,2]
[346291524,1734875441056,-500.0,0.00019178,2]
[346291525,1734875441065,-500.0,0.00019178,2]
[346291526,1734875441074,-500.0,0.00019178,2]
[346291527,1734875441083,-649.70667638,0.00019178,2]
[346291528,1734875441095,-110.57332362,0.00019178,2]
[346291529,1734875441104,-149.86667638,0.00019178,2]
[346291530,1734875441115,-350.13332362,0.00019178,2]
[346291531,1734875441124,-2715.4,0.00019178,2]
[346291532,1734875441133,-1465.78,0.00019178,2]
[346291533,1734875441143,-500.0,0.00019178,2]
[346291534,1734875441152,-1225.76,0.00019178,2]
[346291535,1734875441162,-1072.72,0.00019178,2]
[346291536,1734875441171,-2415.69,0.00019178,2]
[346291537,1734875441180,-500.0,0.00019178,2]
[346291538,1734875441189,-169.699904,0.00019178,2]
[346291539,1734875441198,-501.45492029,0.00019178,2]
[346291540,1734875441207,-500.0,0.00019178,2]
[346291541,1734875441217,-4768.58,0.00019178,2]
[346291542,1734875441226,-500.0,0.00019178,2]
[346291543,1734875441235,-161.397391,0.00019178,2]
[346291544,1734875441244,-500.0,0.00019178,2]
[346291545,1734875441253,-500.0,0.00019178,2]
[346291546,1734875441262,-500.0,0.00019178,2]
[346291547,1734875441270,-1461.89,0.00019178,2]
[346291548,1734875441281,-9377.41,0.00019178,2]
[346291549,1734875441290,-500.0,0.00019178,2]
[346291550,1734875441299,-500.0,0.00019178,2]
[346291551,1734875441309,-944.67,0.00019178,2]
[346291552,1734875441317,-500.0,0.00019178,2]
[346291553,1734875441326,-705.76,0.00019178,2]
[346291554,1734875441336,-500.0,0.00019178,2]
[346291555,1734875441345,-763.21,0.00019178,2]
[346291556,1734875441354,-500.0,0.00019178,2]
[346291557,1734875441362,-516.88013712,0.00019178,2]
[346291558,1734875441371,-500.0,0.00019178,2]
[346291559,1734875441380,-500.0,0.00019178,2]
[346291560,1734875441389,-586.79,0.00019178,2]
[346291561,1734875441399,-500.0,0.00019178,2]
[346291562,1734875441408,-500.0,0.00019178,2]
[346291563,1734875441417,-500.0,0.00019178,2]
[346291564,1734875441426,-687.93,0.00019178,2]
[346291565,1734875441435,-500.0,0.00019178,2]
[346291566,1734875441444,-500.0,0.00019178,2]
[346291567,1734875441452,-500.0,0.00019178,2]
[346291568,1734875441461,-500.0,0.00019178,2]
[346291569,1734875441470,-500.0,0.00019178,2]
[346291570,1734875441478,-500.0,0.00019178,2]
[346291571,1734875441487,-678.47,0.00019178,2]
[346291572,1734875441495,-500.0,0.00019178,2]
[346291573,1734875441504,-3995.6,0.00019178,2]
[346291574,1734875441513,-2225.5,0.00019178,2]
[346291575,1734875441522,-500.0,0.00019178,2]
[346291576,1734875441530,-500.0,0.00019178,2]
[346291577,1734875441539,-2348.17,0.00019178,2]
[346291578,1734875441548,-8927.93,0.00019178,2]
[346291579,1734875441557,-500.0,0.00019178,2]
[346291580,1734875441566,-500.0,0.00019178,2]
[346291581,1734875441575,-500.0,0.00019178,2]
[346291582,1734875441583,-3805.53,0.00019178,2]
[346291583,1734875441592,-500.0,0.00019178,2]
[346291584,1734875441600,-739.7,0.00019178,2]
[346291585,1734875441609,-2280.05,0.00019178,2]
[346291586,1734875441618,-500.0,0.00019178,2]
[346291587,1734875441627,-500.0,0.00019178,2]
[346291588,1734875441636,-500.0,0.00019178,2]
[346291589,1734875441645,-500.0,0.00019178,2]
[346291590,1734875441654,-500.0,0.00019178,2]
[346291591,1734875441663,-2615.6,0.00019178,2]
[346291592,1734875441672,-500.0,0.00019178,2]
[346291593,1734875441681,-500.0,0.00019178,2]
[346291594,1734875441690,-500.0,0.00019178,2]
[346291595,1734875441700,-3207.06,0.00019178,2]
[346291596,1734875441709,-500.0,0.00019178,2]
[346291597,1734875441725,-500.0,0.00019178,2]
[346291598,1734875441734,-1214.49,0.00019178,2]
[346291599,1734875441744,-568.29915338,0.00019178,2]
[346291600,1734875441755,-500.0,0.00019178,2]
[346291601,1734875441766,-500.0,0.00019178,2]
[346291602,1734875441775,-174.93481561,0.00019178,2]
[346291603,1734875441785,-500.0,0.00019178,2]
[346291604,1734875441794,-500.97,0.00019178,2]
[346291605,1734875441804,-500.0,0.00019178,2]
[346291606,1734875441813,-500.0,0.00019178,2]
[346291607,1734875441822,-496.85999889,0.00019178,2]
[346291608,1734875441832,-502.81676198,0.00019178,2]
[346291609,1734875441841,-500.0,0.00019178,2]
[346291610,1734875441850,-500.0,0.00019178,2]
[346291611,1734875441859,-4545.15,0.00019178,2]
[346291612,1734875441869,-500.0,0.00019178,2]
[346291613,1734875441878,-500.0,0.00019178,2]
[346291614,1734875441888,-500.0,0.00019178,2]
[346291615,1734875441897,-500.0,0.00019178,2]
[346291616,1734875441906,-15824.84,0.00019178,2]
[346291617,1734875441915,-267.45698375,0.00019178,2]
[346291618,1734875441925,-1054.07,0.00019178,2]
[346291619,1734875441934,-500.0,0.00019178,2]
[346291620,1734875441943,-500.0,0.00019178,2]
[346291621,1734875441952,-603.9854011,0.00019178,2]
[346291622,1734875441961,-500.0,0.00019178,2]
[346291623,1734875441971,-500.0,0.00019178,2]
[346291624,1734875441982,-500.0,0.00019178,2]
[346291625,1734875441991,-500.0,0.00019178,2]
[346291626,1734875442001,-503.69145721,0.00019178,2]
[346291627,1734875442010,-500.0,0.00019178,2]
[346291628,1734875442019,-500.0,0.00019178,2]
[346291629,1734875442028,-2279.47,0.00019178,2]
[346291630,1734875442037,-562.02,0.00019178,2]
[346291631,1734875442047,-1123.03,0.00019178,2]
[346291632,1734875442056,-500.0,0.00019178,2]
[346291633,1734875442065,-500.0,0.00019178,2]
[346291634,1734875442074,-500.0,0.00019178,2]
[346291635,1734875442083,-500.0,0.00019178,2]
[346291636,1734875442092,-500.0,0.00019178,2]
[346291637,1734875442102,-799.64,0.00019178,2]
[346291638,1734875442111,-500.0,0.00019178,2]
[346291639,1734875442120,-500.0,0.00019178,2]
[346291640,1734875442129,-3916.74392849,0.00019188,2]
[346291641,1734875442138,-261.38456771,0.00019204,15]
[346291642,1734875442148,-500.0,0.0001926,2]
[346291643,1734875442157,-500.0,0.0001926,2]
[346291644,1734875442166,-6615.18711129,0.00019261,2]
[346291645,1734875442175,-156.85106071,0.00019288,2]
[346291646,1734875442185,-3916.74392849,0.0001929,2]
[346291647,1734875442194,-34526.82,0.000193,2]
[346291648,1734875442204,-87430.80753712,0.000193,2]
[346291649,1734875442219,-286.71243976,0.000193,2]
[346291650,1734875442235,-1747.18075516,0.000193,2]
[346291651,1734875442247,-3172.61231284,0.000193,2]
[346291652,1734875442257,-190.09589145,0.0001931,2]
[346291653,1734875442266,-164.00310757,0.00019352,2]
[346291654,1734875442276,-4374.96526087,0.00019352,2]
[346291655,1734875442289,-1086.00001,0.00019352,2]
[346291656,1734875442300,-1154.22184042,0.00019352,2]
[346291657,1734875442310,-2838.5819,0.00019352,2]
[346291658,1734875442319,-498.81174965,0.00019373,2]
[346291659,1734875442329,-500.0,0.00019373,2]
[346291660,1734875442339,-153.0,0.00019385,2]
[346291661,1734875442348,-153.0,0.00019385,2]
[346291662,1734875442357,-153.0,0.00019385,2]
[346291663,1734875442366,-153.0,0.00019385,2]
[346291664,1734875442375,-153.0,0.00019385,2]
[346291665,1734875442391,-153.0,0.00019385,2]
[346291666,1734875442406,-153.0,0.00019385,2]
[346291667,1734875442418,-153.0,0.00019385,2]
[346291668,1734875442428,-153.0,0.00019385,2]
[346291669,1734875442437,-36.83704577,0.00019385,2]
[346291690,1734875443297,-500.0,0.00019178,2]
[346291692,1734875443308,-500.0,0.00019178,2]
[346291694,1734875443317,-116.16295423,0.00019385,2]
[346291696,1734875443326,-153.0,0.00019385,2]
[346291698,1734875443335,-153.0,0.00019385,2]
[346291700,1734875443344,-153.0,0.00019385,2]
[346291702,1734875443354,-185.16739718,0.00019389,2]
[346291704,1734875443363,-3916.74392849,0.00019392,2]
[346291706,1734875443372,-500.0,0.00019398,2]
[346291708,1734875443381,-500.0,0.00019398,2]
[346291710,1734875443390,-537.2890361,0.00019398,2]
[346291712,1734875443402,-425.7809639,0.00019398,2]
[346291714,1734875443411,-954.34,0.00019398,2]
[346291716,1734875443420,-500.0,0.00019398,2]
[346291718,1734875443429,-885.62,0.00019398,2]
[346291719,1734875443438,-2797.76,0.00019398,2]
[346291720,1734875443446,-500.0,0.00019398,2]
[346291721,1734875443455,-500.0,0.00019398,2]
[346291723,1734875443464,-760.67,0.00019398,2]
[346291725,1734875443475,-712.9,0.00019398,2]
[346291727,1734875443484,-1733.12,0.00019398,2]
[346291729,1734875443493,-1578.73,0.00019398,2]
[346291731,1734875443502,-1267.27,0.00019398,2]
[346291733,1734875443511,-2865.71867073,0.00019398,2]
[346291735,1734875443522,-4675.20132927,0.00019398,2]
[346291737,1734875443531,-3835.09,0.00019398,2]
[346291739,1734875443540,-898.11,0.00019398,2]
[346291741,1734875443549,-1967.95,0.00019398,2]
[346291743,1734875443558,-945.02,0.00019398,2]
[346291744,1734875443567,-7930.67061282,0.00019398,2]
[346291745,1734875443579,-2177.02760022,0.00019398,2]
[346291746,1734875443589,-383.20020393,0.00019398,2]
[346291747,1734875443604,-2516.16206871,0.00019398,2]
[346291748,1734875443615,-3896.99010534,0.00019398,2]
[346291749,1734875443626,-1207.38541534,0.00019398,2]
[346291750,1734875443637,-407.199992,0.00019398,2]
[346291751,1734875443649,-326.0299999,0.00019398,2]
[346291752,1734875443661,-664.717,0.00019398,2]
[346291779,1734875446287,-254.25,0.00019178,2]
[346291780,1734875446540,-245.75,0.00019178,2]
[346291781,1734875446549,-317.22271005,0.00019178,2]
[346291782,1734875446561,-182.77728995,0.00019178,2]
[346291783,1734875446571,-227.60657034,0.00019178,2]
[346291784,1734875446581,-3085.14700174,0.00019398,2]
[346291785,1734875446591,-500.0,0.00019398,2]
[346291786,1734875446600,-2014.49,0.00019398,2]
[346291787,1734875446610,-2548.67,0.00019398,2]
[346291788,1734875446619,-500.0,0.00019398,2]
[346291789,1734875446629,-500.0,0.00019398,2]
[346291790,1734875446638,-12962.69577805,0.00019399,2]
[346291791,1734875446650,-2478.61335992,0.00019399,2]
[346291792,1734875446662,-740.40033588,0.00019399,2]
[346291793,1734875446673,-19004.67072615,0.00019399,2]
[346291794,1734875446682,-2797.76,0.00019399,2]
[346291795,1734875446692,-2797.76,0.00019399,2]
[346291796,1734875446702,-3197.0,0.000194,2]
[346291797,1734875446713,-564329.4744,0.000194,2]
[346291798,1734875446727,-190.09589141,0.00019408,2]
[346291799,1734875446736,-249549.72919851,0.0001941,2]
[346291800,1734875446746,-6615.18711129,0.00019443,2]
[346291801,1734875446756,-511.90851351,0.00019451,2]
[346291802,1734875446766,-2797.76,0.00019451,2]
[346291803,1734875446776,-500.0,0.00019452,2]
[346291804,1734875446785,-500.0,0.00019452,2]
[346291805,1734875446797,-779.15,0.00019452,2]
[346291806,1734875446806,-500.0,0.00019452,2]
[346291807,1734875446816,-500.0,0.00019452,2]
[346291808,1734875446825,-500.0,0.00019452,2]
[346291809,1734875446835,-349.8272863,0.00019452,2]
[346291810,1734875446845,-537.0,0.00019452,2]
[346291811,1734875446854,-500.0,0.00019452,2]
[346291812,1734875446863,-500.0,0.00019452,2]
[346291813,1734875446872,-630.82,0.00019452,2]
[346291814,1734875446882,-500.0,0.00019452,2]
[346291815,1734875446891,-509.37743902,0.00019452,2]
[346291816,1734875446900,-507.44987645,0.00019452,2]
[346291817,1734875446910,-500.0,0.00019452,2]
[346291818,1734875446919,-700.0,0.00019452,2]
[346291819,1734875446928,-500.0,0.00019452,2]
[346291820,1734875446938,-500.0,0.00019452,2]
[346291821,1734875446947,-500.0,0.00019452,2]
[346291822,1734875446957,-500.0,0.00019452,2]
[346291823,1734875446967,-500.0,0.00019452,2]
[346291824,1734875446977,-594.57854947,0.00019452,2]
[346291825,1734875446987,-500.0,0.00019452,2]
[346291826,1734875446996,-500.0,0.00019452,2]
[346291827,1734875447006,-500.0,0.00019452,2]
[346291828,1734875447016,-500.0,0.00019452,2]
[346291829,1734875447026,-500.0,0.00019452,2]
[346291830,1734875447035,-500.0,0.00019452,2]
[346291831,1734875447044,-500.0,0.00019452,2]
[346291832,1734875447054,-500.0,0.00019452,2]
[346291833,1734875447064,-500.0,0.00019452,2]
[346291834,1734875447074,-500.0,0.00019452,2]
[346291835,1734875447083,-500.0,0.00019452,2]
[346291836,1734875447093,-500.0,0.00019452,2]
[346291837,1734875447102,-500.0,0.00019452,2]
[346291838,1734875447112,-500.0,0.00019452,2]
[346291839,1734875447121,-500.0,0.00019452,2]
[346291840,1734875447131,-500.0,0.00019452,2]
[346291841,1734875447140,-500.0,0.00019452,2]
[346291842,1734875447150,-500.0,0.00019452,2]
[346291843,1734875447160,-569.74,0.00019452,2]
[346291844,1734875447169,-500.0,0.00019452,2]
[346291845,1734875447178,-500.0,0.00019452,2]
[346291846,1734875447187,-500.0,0.00019452,2]
[346291847,1734875447197,-500.0,0.00019452,2]
[346291848,1734875447207,-500.0,0.00019452,2]
[346291849,1734875447216,-500.0,0.00019452,2]
[346291850,1734875447227,-500.0,0.00019452,2]
[346291851,1734875447237,-500.0,0.00019452,2]
[346291852,1734875447246,-500.0,0.00019452,2]
[346291853,1734875447256,-500.0,0.00019452,2]
[346291854,1734875447266,-500.0,0.00019452,2]
[346291855,1734875447275,-500.0,0.00019452,2]
[346291856,1734875447286,-500.0,0.00019452,2]
[346291857,1734875447295,-500.0,0.00019452,2]
[346291858,1734875447305,-500.0,0.00019452,2]
[346291859,1734875447314,-500.0,0.00019452,2]
[346291860,1734875447323,-500.0,0.00019452,2]
[346291861,1734875447333,-500.0,0.00019452,2]
[346291862,1734875447343,-500.0,0.00019452,2]
[346291863,1734875447352,-500.0,0.00019452,2]
[346291864,1734875447362,-500.0,0.00019452,2]
[346291865,1734875447371,-500.0,0.00019452,2]
[346291866,1734875447380,-392.8,0.00019452,2]
[346291867,1734875447390,-500.0,0.00019452,2]
[346291868,1734875447399,-500.0,0.00019452,2]
[346291869,1734875447409,-584.19,0.00019452,2]
[346291870,1734875447418,-500.0,0.00019452,2]
[346291871,1734875447427,-500.0,0.00019452,2]
[346291872,1734875447437,-500.0,0.00019452,2]
[346291873,1734875447446,-435.91832901,0.00019452,2]
[346291874,1734875447455,-500.0,0.00019452,2]
[346291875,1734875447464,-500.0,0.00019452,2]
[346291876,1734875447474,-500.0,0.00019452,2]
[346291877,1734875447485,-500.0,0.00019452,2]
[346291878,1734875447494,-500.0,0.00019452,2]
[346291879,1734875447503,-500.0,0.00019452,2]
[346291880,1734875447512,-500.0,0.00019452,2]
[346291881,1734875447521,-526.88,0.00019452,2]
[346291882,1734875447530,-500.0,0.00019452,2]
[346291883,1734875447540,-500.0,0.00019452,2]
[346291884,1734875447549,-500.0,0.00019452,2]
[346291885,1734875447558,-500.0,0.00019452,2]
[346291886,1734875447567,-500.0,0.00019452,2]
[346291887,1734875447577,-500.0,0.00019452,2]
[346291888,1734875447586,-500.0,0.00019452,2]
[346291889,1734875447595,-547.89,0.00019452,2]
[346291890,1734875447606,-500.0,0.00019452,2]
[346291891,1734875447616,-500.0,0.00019452,2]
[346291892,1734875447627,-500.0,0.00019452,2]
[346291893,1734875447636,-500.0,0.00019452,2]
[346291894,1734875447645,-500.0,0.00019452,2]
[346291895,1734875447655,-500.0,0.00019452,2]
[346291896,1734875447666,-500.0,0.00019452,2]
[346291897,1734875447675,-500.0,0.00019452,2]
[346291898,1734875447686,-500.0,0.00019452,2]
[346291899,1734875447696,-500.0,0.00019452,2]
[346291900,1734875447705,-637.80318283,0.00019452,2]
[346291901,1734875447716,-733.55,0.00019452,2]
[346291902,1734875447728,-500.0,0.00019452,2]
[346291903,1734875447737,-500.0,0.00019452,2]
[346291904,1734875447747,-500.0,0.00019452,2]
[346291905,1734875447756,-628.7,0.00019452,2]
[346291906,1734875447767,-500.0,0.00019452,2]
[346291907,1734875447777,-500.0,0.00019452,2]
[346291908,1734875447787,-500.0,0.00019452,2]
[346291909,1734875447798,-609.9,0.00019452,2]
[346291910,1734875447808,-166.71207299,0.00019452,2]
[346291911,1734875447817,-509.53113089,0.00019452,2]
[346291912,1734875447826,-563.27,0.00019452,2]
[346291913,1734875447835,-323.12840061,0.00019452,2]
[346291914,1734875447844,-500.0,0.00019452,2]
[346291915,1734875447854,-500.0,0.00019452,2]
[346291916,1734875447863,-500.0,0.00019452,2]
[346291917,1734875447873,-500.0,0.00019452,2]
[346291918,1734875447882,-1182.97,0.00019452,2]
[346291919,1734875447892,-500.0,0.00019452,2]
[346291920,1734875447903,-500.0,0.00019452,2]
[346291921,1734875447913,-506.11573681,0.00019452,2]
[346291922,1734875447923,-703.54,0.00019452,2]
[346291923,1734875447933,-500.0,0.00019452,2]
[346291924,1734875447943,-500.0,0.00019452,2]
[346291925,1734875447954,-500.0,0.00019452,2]
[346291926,1734875447964,-514.955773,0.00019452,2]
[346291927,1734875447975,-1044.9,0.00019452,2]
[346291928,1734875447984,-500.0,0.00019452,2]
[346291929,1734875447993,-500.0,0.00019452,2]
[346291930,1734875448003,-500.0,0.00019452,2]
[346291931,1734875448012,-500.0,0.00019452,2]
[346291932,1734875448022,-500.0,0.00019452,2]
[346291933,1734875448031,-500.0,0.00019452,2]
[346291934,1734875448040,-719.94072,0.00019452,2]
[346291935,1734875448050,-500.0,0.00019452,2]
[346291936,1734875448059,-500.0,0.00019452,2]
[346291937,1734875448068,-699.58,0.00019452,2]
[346291938,1734875448077,-500.0,0.00019452,2]
[346291939,1734875448087,-672.46,0.00019452,2]
[346291940,1734875448096,-500.0,0.00019452,2]
[346291941,1734875448105,-531.23,0.00019452,2]
[346291942,1734875448115,-500.0,0.00019452,2]
[346291943,1734875448124,-500.0,0.00019452,2]
[346291944,1734875448133,-500.0,0.00019452,2]
[346291945,1734875448145,-500.0,0.00019452,2]
[346291946,1734875448155,-500.0,0.00019452,2]
[346291947,1734875448164,-500.0,0.00019452,2]
[346291948,1734875448173,-500.0,0.00019452,2]
[346291949,1734875448183,-620.28,0.00019452,2]
[346291950,1734875448192,-500.0,0.00019452,2]
[346291951,1734875448201,-500.0,0.00019452,2]
[346291952,1734875448210,-167.32,0.00019452,2]
[346291953,1734875448219,-500.0,0.00019452,2]
[346291954,1734875448232,-500.0,0.00019452,2]
[346291955,1734875448241,-500.0,0.00019452,2]
[346291956,1734875448250,-505.57,0.00019452,2]
[346291957,1734875448260,-181.59753365,0.00019452,2]
[346291958,1734875448269,-500.0,0.00019452,2]
[346291959,1734875448279,-500.0,0.00019452,2]
[346291960,1734875448289,-500.0,0.00019452,2]
[346291961,1734875448299,-500.0,0.00019452,2]
[346291962,1734875448308,-500.0,0.00019452,2]
[346291963,1734875448318,-500.0,0.00019452,2]
[346291964,1734875448328,-500.0,0.00019452,2]
[346291965,1734875448337,-500.0,0.00019452,2]
[346291966,1734875448346,-500.0,0.00019452,2]
[346291967,1734875448355,-500.0,0.00019452,2]
[346291968,1734875448365,-547.72388336,0.00019452,2]
[346291969,1734875448374,-768.73,0.00019452,2]
[346291970,1734875448383,-356.87,0.00019452,2]
[346291971,1734875448392,-433.27,0.00019452,2]
[346291972,1734875448402,-500.0,0.00019452,2]
[346291973,1734875448411,-500.0,0.00019452,2]
[346291974,1734875448420,-500.0,0.00019452,2]
[346291975,1734875448429,-500.0,0.00019452,2]
[346291976,1734875448438,-500.0,0.00019452,2]
[346291977,1734875448447,-500.0,0.00019452,2]
[346291978,1734875448457,-500.0,0.00019452,2]
[346291979,1734875448466,-500.0,0.00019452,2]
[346291980,1734875448476,-500.0,0.00019452,2]
[346291981,1734875448486,-500.0,0.00019452,2]
[346291982,1734875448495,-500.0,0.00019452,2]
[346291983,1734875448504,-500.0,0.00019452,2]
[346291984,1734875448514,-500.0,0.00019452,2]
[346291985,1734875448523,-500.0,0.00019452,2]
[346291986,1734875448532,-500.0,0.00019452,2]
[346291987,1734875448542,-500.0,0.00019452,2]
[346291988,1734875448551,-500.0,0.00019452,2]
[346291989,1734875448560,-541.71,0.00019452,2]
[346291990,1734875448570,-504.12610799,0.00019452,2]
[346291991,1734875448579,-500.0,0.00019452,2]
[346291992,1734875448588,-523.39,0.00019452,2]
[346291993,1734875448597,-500.0,0.00019452,2]
[346291994,1734875448608,-500.0,0.00019452,2]
[346291995,1734875448618,-500.0,0.00019452,2]
[346291996,1734875448627,-500.0,0.00019452,2]
[346291997,1734875448636,-221.89630623,0.00019452,2]
[346291998,1734875448646,-500.0,0.00019452,2]
[346291999,1734875448655,-500.0,0.00019452,2]
[346292000,1734875448665,-500.0,0.00019452,2]
[346292001,1734875448675,-346.81127589,0.00019452,2]
[346292002,1734875448892,-500.0,0.00019452,2]
[346292003,1734875448902,-760.23,0.00019452,2]
[346292004,1734875448912,-500.0,0.00019452,2]
[346292005,1734875448922,-500.0,0.00019452,2]
[346292006,1734875448932,-500.0,0.00019452,2]
[346292007,1734875448941,-500.0,0.00019452,2]
[346292008,1734875448950,-1350.41,0.00019452,2]
[346292009,1734875448960,-500.0,0.00019452,2]
[346292010,1734875448970,-500.0,0.00019452,2]
[346292011,1734875448982,-500.0,0.00019452,2]
[346292012,1734875448991,-536.46,0.00019452,2]
[346292013,1734875449000,-500.0,0.00019452,2]
[346292014,1734875449010,-500.0,0.00019452,2]
[346292015,1734875449019,-710.66,0.00019452,2]
[346292016,1734875449029,-1088.75,0.00019452,2]
[346292017,1734875449038,-500.0,0.00019452,2]
[346292018,1734875449047,-500.0,0.00019452,2]
[346292019,1734875449057,-500.0,0.00019452,2]
[346292020,1734875449066,-500.0,0.00019452,2]
[346292021,1734875449075,-416.17603312,0.00019452,2]
[346292022,1734875449085,-500.0,0.00019452,2]
[346292023,1734875449094,-500.0,0.00019452,2]
[346292024,1734875449103,-500.0,0.00019452,2]
[346292025,1734875449112,-743.74,0.00019452,2]
[346292026,1734875449122,-500.0,0.00019452,2]
[346292027,1734875449131,-500.0,0.00019452,2]
[346292028,1734875449140,-500.0,0.00019452,2]
[346292029,1734875449150,-500.0,0.00019452,2]
[346292030,1734875449160,-500.0,0.00019452,2]
[346292031,1734875449170,-500.0,0.00019452,2]
[346292032,1734875449179,-1238.82,0.00019452,2]
[346292033,1734875449189,-500.0,0.00019452,2]
[346292034,1734875449198,-500.0,0.00019452,2]
[346292035,1734875449207,-500.0,0.00019452,2]
[346292036,1734875449217,-500.0,0.00019452,2]
[346292037,1734875449227,-500.0,0.00019452,2]
[346292038,1734875449237,-500.0,0.00019452,2]
[346292039,1734875449247,-500.0,0.00019452,2]
[346292040,1734875449257,-500.0,0.00019452,2]
[346292041,1734875449266,-500.0,0.00019452,2]
[346292042,1734875449276,-500.0,0.00019452,2]
[346292043,1734875449287,-523.7876094,0.00019452,2]
[346292044,1734875449297,-500.0,0.00019452,2]
[346292045,1734875449307,-500.0,0.00019452,2]
[346292046,1734875449317,-500.0,0.00019452,2]
[346292047,1734875449327,-516.47945149,0.00019452,2]
[346292048,1734875449336,-503.82177462,0.00019452,2]
[346292049,1734875449346,-500.0,0.00019452,2]
[346292050,1734875449356,-500.0,0.00019452,2]
[346292051,1734875449366,-564.34639497,0.00019452,2]